fUST/lending_fUST_20250108
["ID","MTS","AMOUNT","RATE_DAILY","PERIOD"]
[348108094,1736320232590,-500.0,0.00021825,3]
[348108096,1736320232600,-500.0,0.00021826,3]
[348108098,1736320232609,-2918.85,0.00021826,3]
[348108100,1736320232619,-642.67,0.00021826,3]
[348108102,1736320232629,-500.0,0.00021827,3]
[348108103,1736320232638,-500.0,0.00021827,3]
[348108104,1736320232648,-500.0,0.00021827,3]
[348108105,1736320232657,-563.178,0.0002188,2]
[348108107,1736320232669,-169.5409565,0.00021898,2]
[348108109,1736320232682,-169.5409565,0.00022071,2]
[348108111,1736320232692,-500.0,0.00022099,3]
[348108113,1736320232701,-332.91151118,0.00022099,3]
[348108114,1736320232711,-500.0,0.00022099,3]
[348108115,1736320232720,-399.31,0.00022099,3]
[348108116,1736320232729,-500.0,0.00022099,3]
[348108117,1736320232739,-1500.0,0.000221,2]
[348108118,1736320232748,-173.99243625,0.000221,2]
[348108119,1736320232757,-1364.4970627,0.000221,3]
[348108120,1736320232770,-1554.3529373,0.000221,3]
[348108121,1736320232779,-1500.0,0.000221,2]
[348108122,1736320232789,-642.67,0.000221,3]
[348108123,1736320232798,-500.0,0.00022101,3]
[348108124,1736320232808,-500.0,0.00022101,3]
[348108125,1736320232817,-283.82362091,0.00022101,3]
[348108126,1736320232827,-863.98,0.00022101,3]
[348108127,1736320232836,-169.5409565,0.00022243,2]
[348108128,1736320232847,-2616.555388,0.00022364,2]
[348108129,1736320232856,-540.66,0.00022373,3]
[348108130,1736320232865,-500.0,0.00022373,3]
[348108131,1736320232875,-500.0,0.00022373,3]
[348108132,1736320232884,-2918.85,0.00022374,3]
[348108133,1736320232894,-642.67,0.00022374,3]
[348108134,1736320232903,-500.0,0.00022375,3]
[348108135,1736320232914,-241.65,0.00022375,3]
[348108136,1736320232924,-863.98,0.00022375,3]
[348108137,1736320232934,-169.5409565,0.00022416,2]
[348108138,1736320232941,-169.5409565,0.00022588,2]
[348108139,1736320232948,-188.08,0.00022647,3]
[348108140,1736320232955,-500.0,0.00022647,3]
[348108141,1736320232962,-2918.85,0.00022648,3]
[348108142,1736320232971,-642.67,0.00022648,3]
[348108143,1736320232981,-500.0,0.00022649,3]
[348108144,1736320232991,-863.98,0.00022649,3]
[348108145,1736320233000,-169.5409565,0.00022761,2]
[348108146,1736320233010,-394.0,0.00022814,2]
[348108147,1736320233020,-465.52637685,0.000229,2]
[348108148,1736320233031,-500.0,0.00022921,3]
[348108149,1736320233041,-2918.85,0.00022922,3]
[348108150,1736320233051,-642.67,0.00022922,3]
[348108151,1736320233062,-500.0,0.00022923,3]
[348108152,1736320233072,-863.98,0.00022923,3]
[348108153,1736320233082,-151.0,0.00022929,7]
[348108154,1736320233092,-169.5409565,0.00022933,2]
[348108155,1736320233102,-465.52637657,0.00022934,2]
[348108156,1736320233112,-29.49072098,0.00022969,2]
[348108157,1736320233175,-436.03565559,0.00022969,2]
[348108158,1736320233186,-211.44,0.00023,2]
[348108159,1736320233197,-153.05,0.00023,31]
[348108160,1736320233207,-153.05,0.00023,31]
[348108161,1736320233217,-153.05,0.00023,31]
[348108162,1736320233227,-153.05,0.00023,31]
[348108163,1736320233236,-153.05,0.00023,31]
[348108164,1736320233247,-153.05,0.00023,31]
[348108165,1736320233257,-153.05,0.00023,31]
[348108166,1736320233268,-465.52637657,0.00023003,2]
[348108167,1736320233279,-150.463,0.00023024,2]
[348108168,1736320233290,-1505.451,0.00023024,2]
[348108169,1736320233300,-151.0,0.00023029,7]
[348108170,1736320233310,-152.059088,0.00023029,7]
[348108171,1736320233320,-150.32014834,0.00023029,10]
[348108172,1736320233330,-250.14071076,0.00023029,10]
[348108173,1736320233340,-500.0,0.00023029,10]
[348108174,1736320233350,-200.0,0.00023029,10]
[348108175,1736320233360,-306.23982002,0.00023032,2]
[348108176,1736320233370,-237.97072379,0.00023032,2]
[348108177,1736320233379,-166.57950665,0.00023032,2]
[348108178,1736320233389,-5739.88430365,0.00023033,3]
[348108179,1736320233399,-378.84993368,0.00023033,3]
[348108180,1736320233409,-33311.52122158,0.00023033,10]
[348108181,1736320233425,-478.8425,0.00023033,10]
[348108239,1736320238201,-8359.29864484,0.00023033,10]
[348108241,1736320238213,-6239.99218668,0.00023033,10]
[348108243,1736320238225,-1144.2426218,0.00023033,10]
[348108398,1736320243150,-320.81589451,0.00022803,2]
[348108400,1736320243160,-193965.18404049,0.00023033,10]
[348108402,1736320243171,-2769.0,0.00023033,10]
[348108442,1736320243547,-9949.49999984,0.00023033,10]
[348108446,1736320243559,-459.74069143,0.00023033,10]
[348108743,1736320246252,-677.216204,0.00023033,10]
[348108753,1736320604739,2174.8835111,0.00025,120]
[348108756,1736321204481,158.702114,0.00013973,2]
[348108757,1736321226139,-178.3207069,0.00018933,2]
[348108758,1736321226164,-178.3207069,0.00019124,2]
[348108759,1736321226185,-163.581789,0.00020502,2]
[348108760,1736321226207,-1674.66587574,0.0002077,2]
[348108761,1736321228094,-347.85226071,0.0002077,2]
[348108762,1736321241120,-300.22220712,0.00020562,2]
[348108763,1736321241144,-5494.04206155,0.0002077,2]
[348108764,1736321241168,-497.10616788,0.00020933,2]
[348108765,1736321241190,-3856.0,0.00021551,2]
[348108766,1736321241215,-1392.66,0.00021553,3]
[348108767,1736321241238,-565.58,0.00021553,3]
[348108768,1736321241262,-308.76,0.00021822,3]
[348108769,1736321241287,-500.0,0.00021822,3]
[348108770,1736321241310,-555.45,0.00021822,3]
[348108771,1736321241333,-500.0,0.00021822,3]
[348108772,1736321241358,-500.0,0.00021822,3]
[348108773,1736321241383,-500.0,0.00021822,3]
[348108774,1736321241406,-500.0,0.00021823,3]
[348108775,1736321241435,-500.0,0.00021823,3]
[348108776,1736321241457,-518.84056997,0.00021823,3]
[348108777,1736321241478,-526.36591694,0.00021823,3]
[348108778,1736321241500,-547.98949156,0.00021823,3]
[348108779,1736321241523,-358.16300866,0.00021823,3]
[348108782,1736321318801,7477.14518456,0.0002,120]
[348108789,1736321352088,-466.28333623,0.00016,2]
[348108790,1736321352109,-7516.64538793,0.00017,7]
[348108791,1736321354104,-172.51918933,0.00017,7]
[348108792,1736321354126,-502.22639786,0.000187,2]
[348108793,1736321354149,-434.53093071,0.00019723,2]
[348108794,1736321354175,-300.0,0.00019999,2]
[348108795,1736321354198,-1968.29385554,0.00019999,2]
[348108825,1736321432432,-300.0,0.00019999,2]
[348108826,1736321432442,-10915.59497695,0.0002,2]
[348108827,1736321432451,-665.29,0.00021553,3]
[348108828,1736321432461,-241.30528772,0.00021692,6]
[348108829,1736321432471,-420.0,0.00021777,2]
[348108830,1736321432481,-500.0,0.00021822,3]
[348108831,1736321432491,-500.0,0.00021822,3]
[348108832,1736321432501,-500.0,0.00021822,3]
[348108833,1736321432511,-500.0,0.00021822,3]
[348108834,1736321432521,-500.0,0.00021822,3]
[348108835,1736321432531,-584.42,0.00021822,3]
[348108836,1736321432540,-500.0,0.00021822,3]
[348108837,1736321432550,-311.34715864,0.00021822,3]
[348108838,1736321432580,-188.65284136,0.00021822,3]
[348108839,1736321432589,-500.0,0.00021822,3]
[348108840,1736321432599,-500.0,0.00021822,3]
[348108841,1736321432609,-500.0,0.00021822,3]
[348108842,1736321432618,-500.0,0.00021822,3]
[348108843,1736321432627,-500.0,0.00021822,3]
[348108844,1736321432638,-156.53051413,0.00021823,3]
[348108845,1736321432761,-513.02970418,0.00021823,3]
[348108846,1736321432771,-515.94489984,0.00021823,3]
[348108847,1736321432781,-500.0,0.00021823,3]
[348108848,1736321432790,-515.14511311,0.00021823,3]
[348108849,1736321432800,-517.68604139,0.00021823,3]
[348108850,1736321432810,-216.32038287,0.00021823,3]
[348108851,1736321432822,-500.0,0.00021823,3]
[348108852,1736321432831,-509.55777234,0.00021823,3]
[348108853,1736321432841,-500.0,0.00021823,3]
[348108854,1736321432851,-518.01254791,0.00021823,3]
[348108855,1736321432860,-515.26264991,0.00021823,3]
[348108856,1736321432870,-510.2844119,0.00021823,3]
[348108857,1736321432880,-513.96742283,0.00021823,3]
[348108858,1736321432889,-517.93571564,0.00021823,3]
[348108859,1736321432899,-500.0,0.00021823,3]
[348108860,1736321432913,-500.0,0.00021823,3]
[348108861,1736321432923,-500.0,0.00021823,3]
[348108862,1736321432933,-562.78,0.00021823,3]
[348108863,1736321432942,-602.07082985,0.00021823,3]
[348108864,1736321432952,-500.0,0.00021823,3]
[348108865,1736321432961,-500.0,0.00021823,3]
[348108866,1736321432971,-500.0,0.00021823,3]
[348108867,1736321432981,-500.0,0.00021823,3]
[348108868,1736321432991,-500.0,0.00021823,3]
[348108869,1736321433002,-500.0,0.00021823,3]
[348108870,1736321433015,-503.55601877,0.00021824,3]
[348108871,1736321433028,-504.03216855,0.00021824,3]
[348108872,1736321433039,-504.14,0.00021824,3]
[348108873,1736321433050,-500.0,0.00021824,3]
[348108874,1736321433062,-505.83177727,0.00021824,3]
[348108875,1736321433077,-500.0,0.00021824,3]
[348108876,1736321433087,-411.23492835,0.00021824,3]
[348108877,1736321433100,-500.0,0.00021824,3]
[348108878,1736321433111,-500.0,0.00021824,3]
[348108879,1736321433121,-3220.18,0.00021824,3]
[348108880,1736321433131,-500.0,0.00021824,3]
[348108881,1736321433142,-356.21636442,0.00021824,3]
[348108882,1736321433152,-500.0,0.00021824,3]
[348108883,1736321433162,-157.64,0.00021824,2]
[348108884,1736321433172,-727.85,0.00021825,3]
[348108885,1736321433181,-500.0,0.00021825,3]
[348108886,1736321433191,-500.0,0.00021825,3]
[348108887,1736321433202,-500.0,0.00021825,3]
[348108888,1736321433212,-1347.75,0.00021826,3]
[348108889,1736321433222,-665.29,0.00021827,3]
[348108890,1736321433232,-567.828,0.0002188,2]
[348108891,1736321433242,-411.4715816,0.00021917,3]
[348108892,1736321433252,-500.0,0.00021917,2]
[348108893,1736321433262,-500.0,0.00021917,2]
[348108894,1736321433272,-1792.63807238,0.00022,2]
[348108895,1736321433282,-178.0,0.00022,2]
[348108896,1736321433292,-500.0,0.00022096,3]
[348108897,1736321433302,-500.0,0.00022096,3]
[348108898,1736321433313,-615.92400301,0.00022096,3]
[348108899,1736321433326,-500.0,0.00022096,3]
[348108900,1736321433336,-325.93,0.00022096,3]
[348108901,1736321433346,-238.26,0.00022096,3]
[348108902,1736321433356,-249.07210029,0.00022097,3]
[348108903,1736321433366,-505.15359488,0.00022097,3]
[348108904,1736321433377,-515.22108745,0.00022097,3]
[348108905,1736321433387,-500.0,0.00022097,3]
[348108906,1736321433397,-415.75610131,0.00022098,3]
[348108907,1736321433407,-514.82180264,0.00022098,3]
[348108908,1736321433417,-3220.18,0.00022098,3]
[348108909,1736321433427,-727.85,0.00022099,3]
[348108910,1736321433438,-500.0,0.00022099,3]
[348108911,1736321433448,-1347.75,0.000221,3]
[348108912,1736321433458,-665.29,0.00022101,3]
[348108913,1736321433468,-500.0,0.00022164,2]
[348108914,1736321433478,-157.7795086,0.00022278,2]
[348108915,1736321433487,-306.0,0.00022278,2]
[348108916,1736321433497,-307.2264451,0.00022278,2]
[348108917,1736321433507,-217.28,0.0002237,3]
[348108918,1736321433516,-500.0,0.0002237,3]
[348108919,1736321433526,-282.92,0.0002237,3]
[348108920,1736321433536,-500.0,0.00022371,3]
[348108921,1736321433545,-3220.18,0.00022372,3]
[348108922,1736321433555,-727.85,0.00022373,3]
[348108923,1736321433565,-500.0,0.00022373,3]
[348108924,1736321433576,-1347.75,0.00022374,3]
[348108925,1736321433586,-665.29,0.00022375,3]
[348108926,1736321433596,-4486.83797718,0.00022465,14]
[348108927,1736321433607,-417.3,0.00022644,3]
[348108928,1736321433616,-431.86,0.00022645,3]
[348108929,1736321433627,-3220.18,0.00022646,3]
[348108930,1736321433636,-727.85,0.00022647,3]
[348108931,1736321433646,-500.0,0.00022647,3]
[348108932,1736321433655,-1347.75,0.00022648,3]
[348108933,1736321433665,-665.29,0.00022649,3]
[348108934,1736321433675,-4749.70498173,0.00022765,2]
[348108935,1736321433686,-438.74659083,0.000229,2]
[348108936,1736321433696,-538.07598314,0.00022909,2]
[348108937,1736321433706,-3220.18,0.0002292,3]
[348108938,1736321433716,-727.85,0.00022921,3]
[348108939,1736321433726,-500.0,0.00022921,3]
[348108940,1736321433736,-1347.75,0.00022922,3]
[348108941,1736321433746,-665.29,0.00022923,3]
[348108942,1736321433756,-438.74659075,0.00022934,2]
[348108943,1736321433765,-438.74659075,0.00022969,2]
[348108944,1736321433775,-285.17065218,0.00022999,2]
[348108945,1736321433785,-239.36,0.00023,2]
[348108946,1736321433795,-150.0,0.00023,2]
[348108947,1736321433806,-30041.78126756,0.00023,2]
[348108948,1736321433815,-153.04,0.00023,31]
[348108949,1736321433826,-153.04,0.00023,31]
[348108950,1736321433836,-153.04,0.00023,31]
[348108951,1736321433845,-153.04,0.00023,31]
[348108952,1736321433855,-153.04,0.00023,31]
[348108953,1736321433865,-210.0,0.00023,14]
[348108954,1736321433875,-450.2955239,0.00023,2]
[348108955,1736321433885,-1182.92732591,0.00023,2]
[348108956,1736321433894,-438.74659075,0.00023003,2]
[348108957,1736321433904,-151.0,0.00023033,7]
[348108958,1736321433914,-153.40935,0.00023033,7]
[348108959,1736321433924,-151.0,0.00023033,7]
[348108960,1736321433934,-151.0,0.00023033,7]
[348108961,1736321433944,-151.0,0.00023033,7]
[348108962,1736321433953,-151.0,0.00023033,7]
[348108963,1736321433963,-151.0,0.00023033,7]
[348108964,1736321433972,-151.0,0.00023033,7]
[348108965,1736321433982,-151.0,0.00023033,7]
[348108966,1736321433992,-151.0,0.00023033,7]
[348108967,1736321434002,-151.0,0.00023033,7]
[348108968,1736321434012,-151.0,0.00023033,7]
[348108969,1736321434025,-151.0,0.00023033,7]
[348108970,1736321434038,-151.0,0.00023033,7]
[348108971,1736321434049,-151.0,0.00023033,7]
[348108972,1736321434059,-151.0,0.00023033,7]
[348108973,1736321434072,-151.0,0.00023033,7]
[348108974,1736321434082,-151.0,0.00023033,7]
[348108975,1736321434092,-151.0,0.00023033,7]
[348108976,1736321434102,-151.0,0.00023033,7]
[348108977,1736321434113,-151.0,0.00023033,7]
[348108978,1736321434123,-151.0,0.00023033,7]
[348108979,1736321434134,-151.0,0.00023033,7]
[348108980,1736321434144,-172.206945,0.00023033,7]
[348108981,1736321434153,-151.0,0.00023033,7]
[348108982,1736321434163,-151.0,0.00023033,7]
[348108983,1736321434173,-151.0,0.00023033,7]
[348108984,1736321434183,-151.0,0.00023033,7]
[348108985,1736321434194,-151.0,0.00023033,7]
[348108986,1736321434204,-157.969251,0.00023033,7]
[348108987,1736321434214,-151.0,0.00023033,7]
[348108988,1736321434224,-151.0,0.00023033,7]
[348108989,1736321434234,-151.0,0.00023033,7]
[348108990,1736321434244,-219.346501,0.00023033,7]
[348108991,1736321434254,-151.0,0.00023033,7]
[348108992,1736321434264,-151.495182,0.00023033,7]
[348108993,1736321434274,-150.2,0.00023033,10]
[348108994,1736321434284,-151.962569,0.00023034,7]
[348108995,1736321434294,-151.0,0.00023034,7]
[348108996,1736321434304,-151.0,0.00023034,7]
[348108997,1736321434314,-151.0,0.00023034,7]
[348108998,1736321434326,-151.0,0.00023034,7]
[348108999,1736321434335,-151.0,0.00023034,7]
[348109000,1736321434346,-163.102048,0.00023034,7]
[348109001,1736321434355,-151.0,0.00023034,7]
[348109002,1736321434365,-438.74659075,0.00023038,2]
[348109003,1736321434375,-5959.90042659,0.00023052,3]
[348109004,1736321434385,-2684.13876814,0.00023052,3]
[348109005,1736321434395,-110363.05789192,0.00023053,10]
[348109065,1736321438596,-394.0,0.00023027,2]
[348109066,1736321438606,-816330.59699114,0.00023053,10]
[348109113,1736321444766,-10.0,0.00023,2]
[348109130,1736321462259,7129.18058134,0.00022034,120]
[348109131,1736322053938,158.702114,0.00013973,2]
[348109133,1736322425124,-196.48382623,0.00019898,2]
[348109134,1736322425149,-300.0,0.00019998,2]
[348109135,1736322425171,-504.0969681,0.00019999,3]
[348109136,1736322425193,-502.86048209,0.00019999,3]
[348109137,1736322425218,-501.18236668,0.00019999,3]
[348109138,1736322425241,-56.25323579,0.00019999,3]
[348109139,1736322428085,-305.42450859,0.00019999,3]
[348109140,1736322428112,-576.21,0.00019999,3]
[348109141,1736322428136,-576.21,0.00020273,3]
[348109142,1736322428160,-534.85822524,0.00020547,3]
[348109143,1736322440099,-41.35177476,0.00020547,3]
[348109144,1736322440120,-584.7826849,0.00020808,2]
[348109145,1736322440145,-576.21,0.00020821,3]
[348109146,1736322440167,-267.169648,0.00020936,2]
[348109147,1736322440189,-289.68728714,0.00020953,2]
[348109148,1736322440210,-388.11740984,0.00020978,2]
[348109149,1736322448151,-862.03778306,0.00020978,2]
[348109150,1736322448174,-2837.4236264,0.00021062,2]
[348109151,1736322448197,-153.0,0.00021071,2]
[348109152,1736322448221,-576.21,0.00021095,3]
[348109153,1736322448245,-576.21,0.00021369,3]
[348109154,1736322448269,-576.21,0.00021643,3]
[348109155,1736322448292,-420.0,0.00021776,2]
[348109156,1736322448317,-1231.6,0.00021825,3]
[348109157,1736322448345,-500.0,0.00021825,3]
[348109158,1736322448369,-544.12,0.000219,2]
[348109159,1736322448392,-500.0,0.00021917,2]
[348109160,1736322448422,-576.21,0.00021917,3]
[348109161,1736322448447,-1231.6,0.00022099,3]
[348109162,1736322448471,-500.0,0.00022099,2]
[348109163,1736322448497,-500.0,0.00022099,3]
[348109164,1736322448522,-576.21,0.00022191,3]
[348109165,1736322448546,-500.0,0.00022369,3]
[348109166,1736322448569,-500.0,0.00022371,3]
[348109167,1736322448591,-500.0,0.00022371,3]
[348109168,1736322448613,-503.47140876,0.00022371,3]
[348109169,1736322448637,-2183.75050404,0.00022371,3]
[348109170,1736322570784,-171.04868648,0.00020271,2]
[348109190,1736322632715,-22.07617161,0.00020271,2]
[348109191,1736322632725,-500.0,0.00022369,3]
[348109192,1736322632734,-365.55949596,0.00022371,3]
[348109193,1736322632744,-522.29820646,0.00022372,3]
[348109194,1736322632755,-1231.6,0.00022373,3]
[348109195,1736322632764,-243.11,0.00022373,2]
[348109196,1736322632776,-500.0,0.00022373,3]
[348109197,1736322632785,-576.21,0.00022465,3]
[348109198,1736322632795,-230.06225562,0.00022643,3]
[348109199,1736322632805,-300.0,0.00022644,2]
[348109200,1736322632814,-500.0,0.00022645,3]
[348109201,1736322632825,-2549.31,0.00022645,3]
[348109202,1736322632834,-1231.6,0.00022647,3]
[348109203,1736322632844,-500.0,0.00022647,3]
[348109204,1736322632855,-499.56820696,0.00022739,3]
[348109239,1736322638414,-76.64179304,0.00022739,3]
[348109240,1736322638424,-421.1403735,0.000228,2]
[348109242,1736322638435,-153.7491537,0.000228,2]
[348109244,1736322638445,-361.06867976,0.000228,2]
[348109264,1736322638623,-82.46919034,0.000228,2]
[348109266,1736322638633,-500.0,0.00022919,3]
[348109268,1736322638642,-151.68910026,0.00022919,3]
[348109270,1736322638653,-523.778929,0.00022919,3]
[348109272,1736322638664,-1873.84197074,0.00022919,3]
[348109274,1736322638674,-1231.6,0.00022921,3]
[348109276,1736322638684,-500.0,0.00022921,3]
[348109278,1736322638693,-908.33411725,0.00022938,10]
[348109280,1736322638702,-182.55733407,0.00022953,7]
[348109282,1736322638711,-182.55,0.00022953,7]
[348109284,1736322638720,-447.59108169,0.00022966,2]
[348109287,1736322638732,-1667.84999999,0.00022966,2]
[348109289,1736322638743,-776.7065474,0.00022966,2]
[348109682,1736322643811,-1263.012818,0.000228,2]
[348109684,1736322643824,-10300.77026793,0.00022966,2]
[348109686,1736322643834,-214.43,0.00023,2]
[348109688,1736322643843,-180.0,0.00023,7]
[348109690,1736322643852,-153.05,0.00023,31]
[348109692,1736322643862,-153.05,0.00023,31]
[348109694,1736322643871,-153.05,0.00023,31]
[348109696,1736322643880,-153.05,0.00023,31]
[348109698,1736322643889,-153.05,0.00023,31]
[348109700,1736322643901,-153.05,0.00023,31]
[348109702,1736322643911,-153.05,0.00023,31]
[348109705,1736322643920,-153.05,0.00023,31]
[348109707,1736322643930,-192.576,0.00023003,2]
[348109709,1736322643940,-576.21,0.00023013,3]
[348109710,1736322643949,-500.0,0.00023052,2]
[348109713,1736322643959,-500.0,0.00023052,2]
[348109714,1736322643968,-500.0,0.00023052,2]
[348109716,1736322643977,-500.0,0.00023052,2]
[348109718,1736322643987,-500.0,0.00023052,2]
[348109721,1736322643996,-502.3156547,0.00023052,2]
[348109722,1736322644007,-940.3231467,0.00023053,3]
[348109809,1736322646491,-500.0,0.00023052,2]
[348109810,1736322646501,-500.0,0.00023052,2]
[348109811,1736322646511,-500.0,0.00023052,2]
[348109812,1736322646520,-500.0,0.00023052,2]
[348109813,1736322646530,-420.30299715,0.00023052,2]
[348109814,1736322646541,-500.0,0.00023052,2]
[348109815,1736322646551,-500.0,0.00023052,2]
[348109816,1736322646561,-500.0,0.00023052,2]
[348109817,1736322646570,-500.0,0.00023052,2]
[348109818,1736322646579,-500.0,0.00023052,2]
[348109819,1736322646589,-500.0,0.00023052,2]
[348109820,1736322646599,-476.90448243,0.00023052,2]
[348109821,1736322646610,-500.0,0.00023052,2]
[348109822,1736322646622,-500.0,0.00023052,2]
[348109823,1736322646634,-500.0,0.00023052,2]
[348109824,1736322646644,-2039.62706659,0.00023053,3]
[348109825,1736322646654,-1342.06938407,0.00023053,3]
[348109826,1736322646663,-226249.73025374,0.00023053,10]
[348109827,1736322646675,-356.539022,0.00023053,10]
[348109828,1736322964856,-500.0,0.00019999,3]
[348109829,1736322964882,-500.0,0.00019999,3]
[348109830,1736322972854,500.0,0.00019999,3]
[348109831,1736322993026,160.502629,0.00013973,2]
[348109832,1736323104443,302.66710251,0.00019859,2]
[348109835,1736323228417,302.24359848,0.0001972,2]
[348109836,1736323458746,303.03008523,0.00019621,2]
[348109837,1736323584434,1000.0,0.00025,120]
[348109838,1736323602556,1331.94,0.00019999,3]
[348109839,1736323636116,-1331.94,0.00020273,3]
[348109840,1736323636144,-85.78446025,0.00020547,3]
[348109841,1736323639116,-1246.15553975,0.00020547,3]
[348109842,1736323639138,-161.067107,0.00020596,2]
[348109843,1736323639162,-230.72439604,0.00020657,2]
[348109844,1736323649093,-214.73188046,0.00020657,2]
[348109845,1736323650292,-343.75168789,0.00020657,2]
[348109846,1736323675464,500.0,0.00019999,3]
[348109847,1736323700129,500.0,0.00019999,3]
[348109848,1736323711454,500.0,0.00019999,3]
[348109849,1736323745104,-278.62785736,0.00020246,2]
[348109850,1736323745126,-197.42,0.00020273,3]
[348109851,1736323745145,-273.45614264,0.0002045,2]
[348109852,1736323756581,150.0,0.0001973,2]
[348109917,1736323832920,-54.30385736,0.0002045,2]
[348109919,1736323832930,-28.03800531,0.00020657,2]
[348109921,1736323832939,-1331.94,0.00020821,3]
[348109923,1736323832948,-3508.0,0.0002086,2]
[348109925,1736323832957,-1331.94,0.00021095,3]
[348109927,1736323832967,-1331.94,0.00021369,3]
[348109929,1736323832977,-226.274201,0.00021496,2]
[348109931,1736323832987,-1331.94,0.00021643,3]
[348109933,1736323832996,-500.0,0.00021824,3]
[348109935,1736323833006,-300.0,0.00021899,2]
[348109937,1736323833016,-521.787,0.000219,2]
[348109938,1736323833025,-500.0,0.00021917,2]
[348109939,1736323833035,-1331.94,0.00021917,3]
[348109941,1736323833045,-161.8605235,0.00021998,2]
[348109943,1736323833055,-500.0,0.00022096,3]
[348109945,1736323833066,-500.0,0.00022096,3]
[348109947,1736323833075,-333.5906283,0.00022097,2]
[348109949,1736323833085,-500.0,0.00022097,2]
[348109951,1736323833095,-500.0,0.00022097,2]
[348109953,1736323833104,-500.0,0.00022097,2]
[348109955,1736323833114,-500.0,0.00022097,2]
[348109957,1736323833124,-622.76368628,0.00022097,2]
[348109960,1736323833134,-500.0,0.00022097,3]
[348109963,1736323833144,-499.0,0.00022097,2]
[348109966,1736323833154,-500.0,0.00022097,3]
[348109969,1736323833163,-500.0,0.00022097,3]
[348109972,1736323833173,-500.0,0.00022097,3]
[348109975,1736323833182,-500.0,0.00022097,3]
[348109978,1736323833192,-500.0,0.00022097,3]
[348109981,1736323833202,-500.0,0.00022097,3]
[348109984,1736323833213,-500.0,0.00022097,3]
[348109987,1736323833223,-500.0,0.00022097,3]
[348109990,1736323833233,-500.0,0.00022097,3]
[348109993,1736323833243,-500.0,0.00022097,3]
[348109996,1736323833253,-500.0,0.00022097,3]
[348109999,1736323833263,-500.0,0.00022097,3]
[348110002,1736323833273,-520.81,0.00022097,3]
[348110005,1736323833283,-500.0,0.00022097,3]
[348110008,1736323833294,-500.0,0.00022097,3]
[348110011,1736323833304,-542.74,0.00022097,3]
[348110014,1736323833314,-500.0,0.00022097,3]
[348110017,1736323833324,-214.57391491,0.00022097,3]
[348110020,1736323833333,-500.0,0.00022097,3]
[348110022,1736323833343,-500.0,0.00022097,3]
[348110026,1736323833353,-14431.84002001,0.00022098,3]
[348110028,1736323833363,-671.03469203,0.00022098,3]
[348110031,1736323833373,-500.0,0.00022098,3]
[348110034,1736323833383,-5931.8797284,0.00022098,5]
[348110038,1736323833395,-278.1884,0.00022098,5]
[348110041,1736323833407,-10080.5608932,0.00022098,5]
[348110043,1736323833419,-30337.89675346,0.00022098,5]
[348110425,1736323840645,-4595.20432311,0.00022098,5]
[348110451,1736324012384,203.50744286,0.00019998,2]
[348110452,1736324154888,651.35,0.00019999,3]
[348110453,1736324311875,162.911904,0.00013973,2]
[348110454,1736324313461,150.0,0.00019998,2]
[348110455,1736324452881,4114.3814196,0.0001899,2]
[348110458,1736324614767,150.0,0.00019998,2]
[348110459,1736324715595,478.54291402,0.0002,2]